fUST/lending_fUST_20250211
["ID","MTS","AMOUNT","RATE_DAILY","PERIOD"]
[352709294,1739266233220,-500.0,9.958e-05,2]
[352709295,1739266233229,-500.0,9.958e-05,2]
[352709296,1739266233239,-500.0,9.958e-05,2]
[352709297,1739266233248,-500.0,9.958e-05,2]
[352709298,1739266233257,-500.0,9.958e-05,2]
[352709299,1739266233266,-488.79,9.958e-05,2]
[352709300,1739266233276,-686.0,0.0001,2]
[352709301,1739266233285,-425.52946155,0.0001,7]
[352709302,1739266233296,-6166.39780215,0.000103,2]
[352709303,1739266233306,-420.0,0.00010368,2]
[352709304,1739266233315,-240.3404642,0.00010395,2]
[352709305,1739266233324,-2791.16292535,0.000104,2]
[352709306,1739266233334,-1932.49239484,0.000104,2]
[352709307,1739266233343,-4949.6821251,0.000104,2]
[352709308,1739266233352,-9181.6480983,0.000104,2]
[352709309,1739266233362,-500.0,0.00010473,2]
[352709310,1739266233371,-306.14860996,0.00010473,2]
[352709311,1739266233380,-417.85347584,0.00010473,2]
[352709312,1739266233389,-500.0,0.00010473,2]
[352709313,1739266233399,-500.0,0.00010473,2]
[352709314,1739266233408,-503.80478108,0.00010473,2]
[352709315,1739266233417,-500.0,0.00010493,2]
[352709316,1739266233427,-500.0,0.00010493,2]
[352709317,1739266233436,-500.0,0.00010493,2]
[352709318,1739266233445,-500.0,0.00010493,2]
[352709319,1739266233455,-500.0,0.00010493,2]
[352709320,1739266233464,-500.0,0.00010493,2]
[352709321,1739266233473,-500.0,0.00010493,2]
[352709322,1739266233482,-500.0,0.00010493,2]
[352709323,1739266233492,-500.0,0.00010493,2]
[352709324,1739266233501,-500.0,0.00010493,2]
[352709325,1739266233510,-500.0,0.00010493,2]
[352709326,1739266233520,-500.0,0.00010493,2]
[352709327,1739266233529,-500.0,0.00010493,2]
[352709328,1739266233538,-500.0,0.00010493,2]
[352709329,1739266233548,-500.0,0.00010493,2]
[352709330,1739266233557,-500.0,0.00010493,2]
[352709331,1739266233566,-414.3747,0.00010493,2]
[352709332,1739266233576,-500.0,0.00010493,2]
[352709333,1739266233585,-500.0,0.00010493,2]
[352709334,1739266233594,-456.16380709,0.00010493,2]
[352709335,1739266233603,-500.0,0.00010493,2]
[352709336,1739266233612,-500.0,0.00010493,2]
[352709337,1739266233621,-500.0,0.00010493,2]
[352709338,1739266233631,-500.0,0.00010493,2]
[352709339,1739266233640,-500.0,0.00010493,2]
[352709340,1739266233649,-500.0,0.00010493,2]
[352709341,1739266233658,-500.0,0.00010493,2]
[352709342,1739266233667,-607.60189493,0.00010493,2]
[352709343,1739266233677,-500.0,0.00010493,2]
[352709344,1739266233687,-500.0,0.00010493,2]
[352709345,1739266233696,-500.0,0.00010493,2]
[352709346,1739266233705,-500.0,0.00010493,2]
[352709347,1739266233715,-500.0,0.00010493,2]
[352709348,1739266233724,-500.0,0.00010493,2]
[352709349,1739266233733,-500.0,0.00010493,2]
[352709350,1739266233742,-500.0,0.00010493,2]
[352709351,1739266233751,-500.0,0.00010493,2]
[352709352,1739266233761,-500.0,0.00010493,2]
[352709353,1739266233770,-500.0,0.00010493,2]
[352709354,1739266233779,-500.0,0.00010493,2]
[352709355,1739266233789,-500.0,0.00010493,2]
[352709356,1739266233799,-151.0,0.00010494,2]
[352709357,1739266233809,-374.91407546,0.00010499,2]
[352709358,1739266233818,-500.0,0.00010499,2]
[352709359,1739266233827,-152.48604884,0.00010499,2]
[352709360,1739266233836,-227977.45869908,0.000105,2]
[352709361,1739266234059,-1140556.98657423,0.000105,2]
[352709411,1739266238509,-500.0,0.00010493,2]
[352709413,1739266238519,-500.0,0.00010493,2]
[352709414,1739266238528,-500.0,0.00010493,2]
[352709416,1739266238537,-500.0,0.00010493,2]
[352709418,1739266238547,-500.0,0.00010493,2]
[352709419,1739266238556,-500.0,0.00010493,2]
[352709420,1739266238565,-500.0,0.00010493,2]
[352709421,1739266238575,-182.81756739,0.00010493,2]
[352709422,1739266238592,-317.18243261,0.00010493,2]
[352709423,1739266238602,-500.0,0.00010493,2]
[352709424,1739266238612,-500.0,0.00010493,2]
[352709425,1739266238621,-500.0,0.00010493,2]
[352709426,1739266238631,-500.0,0.00010493,2]
[352709427,1739266238645,-500.0,0.00010493,2]
[352709428,1739266238655,-500.0,0.00010493,2]
[352709429,1739266238664,-500.0,0.00010493,2]
[352709430,1739266238674,-500.0,0.00010493,2]
[352709431,1739266238683,-500.0,0.00010493,2]
[352709432,1739266238693,-500.0,0.00010493,2]
[352709433,1739266238702,-429.57731088,0.00010493,2]
[352709434,1739266238827,-70.42268912,0.00010493,2]
[352709435,1739266238836,-500.0,0.00010493,2]
[352709436,1739266238846,-500.0,0.00010493,2]
[352709437,1739266238855,-500.0,0.00010493,2]
[352709438,1739266238864,-500.0,0.00010493,2]
[352709439,1739266238874,-500.0,0.00010493,2]
[352709440,1739266238885,-500.0,0.00010493,2]
[352709441,1739266238895,-500.0,0.00010493,2]
[352709442,1739266238904,-500.0,0.00010493,2]
[352709443,1739266238913,-500.0,0.00010493,2]
[352709444,1739266238923,-500.0,0.00010493,2]
[352709445,1739266238933,-500.0,0.00010493,2]
[352709446,1739266238943,-500.0,0.00010493,2]
[352709447,1739266238952,-527.21308815,0.00010493,2]
[352709448,1739266238963,-500.0,0.00010493,2]
[352709449,1739266238972,-500.0,0.00010493,2]
[352709450,1739266238981,-17869.96268302,0.000105,2]
[352709548,1739266244207,-0.10005322,0.00010499,2]
[352709584,1739266995910,500.0,0.00016,120]
[352709586,1739267033839,10000.0,8.214e-05,2]
[352709587,1739267049295,1620.27725176,8.214e-05,2]
[352709588,1739267049329,6613.72274824,8.214e-05,2]
[352709589,1739267053874,1000.0,0.00016,120]
[352709590,1739267097370,1000.0,0.00016,120]
[352709646,1739267432878,-242.3522434,9.315e-05,2]
[352709648,1739267432889,-6802.1327848,9.504e-05,2]
[352709650,1739267432899,-160.2269762,0.00010395,2]
[352709652,1739267432908,-198.74009082,0.000104,2]
[352709654,1739267432917,-500.0,0.00010473,2]
[352709656,1739267432926,-151.0,0.00010494,2]
[352709658,1739267432935,-300.0,0.00010498,2]
[352709660,1739267432944,-1881.49528403,0.00010499,2]
[352709662,1739267432954,-443.26,0.00010499,2]
[352709664,1739267432963,-374.91407546,0.00010499,2]
[352709666,1739267432973,-500.0,0.00010499,2]
[352709668,1739267432982,-567.51132166,0.00010499,2]
[352709670,1739267432991,-217.35153412,0.00010499,2]
[352709672,1739267433000,-212.7083,0.00010499,2]
[352709674,1739267433009,-500.0,0.00010499,2]
[352709676,1739267433019,-500.0,0.00010499,2]
[352709678,1739267433029,-500.0,0.00010499,2]
[352709680,1739267433038,-500.0,0.00010499,2]
[352709683,1739267433048,-500.0,0.00010499,2]
[352709684,1739267433057,-500.0,0.00010499,2]
[352709685,1739267433066,-242.20025235,0.00010499,2]
[352709686,1739267433076,-500.0,0.00010499,2]
[352709687,1739267433085,-500.0,0.00010499,2]
[352709688,1739267433094,-500.0,0.00010499,2]
[352709689,1739267433103,-500.0,0.00010499,2]
[352709690,1739267433112,-500.0,0.00010499,2]
[352709691,1739267433122,-500.0,0.00010499,2]
[352709692,1739267433131,-500.0,0.00010499,2]
[352709693,1739267433143,-500.0,0.00010499,2]
[352709694,1739267433152,-500.0,0.00010499,2]
[352709695,1739267433161,-500.0,0.00010499,2]
[352709696,1739267433170,-500.0,0.00010499,2]
[352709697,1739267433180,-500.0,0.00010499,2]
[352709698,1739267433189,-500.0,0.00010499,2]
[352709699,1739267433199,-500.0,0.00010499,2]
[352709700,1739267433208,-500.0,0.00010499,2]
[352709701,1739267433218,-500.0,0.00010499,2]
[352709702,1739267433227,-500.0,0.00010499,2]
[352709703,1739267433236,-500.0,0.00010499,2]
[352709704,1739267433246,-500.0,0.00010499,2]
[352709705,1739267433256,-500.0,0.00010499,2]
[352709706,1739267433265,-500.0,0.00010499,2]
[352709707,1739267433275,-500.0,0.00010499,2]
[352709708,1739267433285,-500.0,0.00010499,2]
[352709709,1739267433294,-496.70110159,0.00010499,2]
[352709710,1739267433303,-500.0,0.00010499,2]
[352709711,1739267433313,-500.0,0.00010499,2]
[352709712,1739267433322,-500.0,0.00010499,2]
[352709713,1739267433331,-500.0,0.00010499,2]
[352709714,1739267433341,-500.0,0.00010499,2]
[352709715,1739267433350,-500.0,0.00010499,2]
[352709716,1739267433360,-500.0,0.00010499,2]
[352709717,1739267433369,-500.0,0.00010499,2]
[352709718,1739267433378,-500.0,0.00010499,2]
[352709719,1739267433391,-500.0,0.00010499,2]
[352709720,1739267433400,-500.0,0.00010499,2]
[352709721,1739267433410,-400.0,0.00010499,2]
[352709722,1739267433420,-500.0,0.00010499,2]
[352709723,1739267433430,-456.87932911,0.00010499,2]
[352709724,1739267433442,-500.0,0.00010499,2]
[352709725,1739267433451,-500.0,0.00010499,2]
[352709726,1739267433461,-641.06930074,0.00010499,2]
[352709727,1739267433470,-500.0,0.00010499,2]
[352709728,1739267433481,-500.0,0.00010499,2]
[352709729,1739267433490,-500.0,0.00010499,2]
[352709730,1739267433500,-256179.55551115,0.000105,2]
[352709745,1739267438588,-392.25,0.000105,2]
[352710662,1739267744046,500.0,0.00016,120]
[352710663,1739268117550,1000.0,0.00016,120]
[352710664,1739268397133,-158.79623891,8.748e-05,2]
[352710692,1739268632045,-5000.0,8.574e-05,2]
[352710694,1739268632054,-5000.0,8.661e-05,2]
[352710696,1739268632063,-300.0,9.247e-05,2]
[352710698,1739268632073,-3234.4536993,9.248e-05,2]
[352710700,1739268632083,-202.6643245,9.48e-05,2]
[352710702,1739268632092,-2500.0,0.00010102,2]
[352710704,1739268632102,-420.0,0.00010172,2]
[352710706,1739268632111,-26.8891021,0.00010187,2]
[352711212,1739268637869,-187.13212446,0.00010085,2]
[352711214,1739268637880,-319.02917944,0.00010187,2]
[352711216,1739268637890,-415.34,0.00010351,2]
[352711218,1739268637899,-160.2269762,0.00010395,2]
[352711220,1739268637909,-153.0,0.000104,2]
[352711222,1739268637918,-302.8932491,0.000104,2]
[352711224,1739268637928,-198.74009081,0.000104,2]
[352711226,1739268637937,-1034.89104084,0.00010499,2]
[352711286,1739268639942,-504.57331628,0.00010499,2]
[352711542,1739268642811,-739.66564288,0.00010499,2]
[352711545,1739268642821,-354.608,0.00010499,2]
[352711547,1739268642830,-156.6818161,0.00010499,2]
[352711548,1739268642840,-7415.09553289,0.000105,2]
[352711553,1739268642871,-1437.62322814,0.000105,2]
[352711559,1739268642921,-1195.25430891,0.000105,2]
[352711562,1739268642933,-12751.000001,0.000105,2]
[352712681,1739269834015,-1802.70952778,9.704e-05,2]
[352712682,1739269834027,-219.37619585,0.00010002,2]
[352712683,1739269834037,-2500.0,0.00010102,2]
[352712684,1739269834047,-160.2269762,0.00010395,2]
[352712685,1739269834060,-165.9641461,0.000104,2]
[352712686,1739269834071,-1507.05273638,0.00010433,2]
[352712687,1739269834082,-298.69805937,0.00010494,2]
[352712688,1739269834094,-300.0,0.00010498,2]
[352712689,1739269834104,-374.91407546,0.00010499,2]
[352712690,1739269834114,-473.89,0.00010499,2]
[352712691,1739269834126,-500.0,0.00010499,2]
[352712692,1739269834135,-500.0,0.00010499,2]
[352712693,1739269834146,-500.0,0.00010499,2]
[352712694,1739269834156,-239.53670597,0.00010499,2]
[352712695,1739269834166,-500.0,0.00010499,2]
[352712696,1739269834176,-500.0,0.00010499,2]
[352712697,1739269834188,-500.0,0.00010499,2]
[352712698,1739269834199,-500.0,0.00010499,2]
[352712699,1739269834209,-500.0,0.00010499,2]
[352712700,1739269834218,-500.0,0.00010499,2]
[352712701,1739269834230,-438.5155003,0.00010499,2]
[352712702,1739269834240,-500.0,0.00010499,2]
[352712703,1739269834250,-500.0,0.00010499,2]
[352712704,1739269834260,-200.0,0.00010499,2]
[352712705,1739269834272,-430.99620997,0.00010499,2]
[352712706,1739269834283,-152241.7860054,0.000105,2]
[352712707,1739269834293,-200.0,0.000105,2]
[352712708,1739269834302,-165.96414609,0.00010515,2]
[352712709,1739269834312,-600.0,0.0001052,2]
[352712710,1739269834322,-1982.0,0.00010526,2]
[352712711,1739269834332,-545.771,0.00010526,2]
[352712712,1739269834342,-2298.0,0.00010526,2]
[352712713,1739269834353,-153.0,0.00010572,2]
[352712714,1739269834363,-151.144,0.00010572,2]
[352712715,1739269834375,-250.0,0.00010572,2]
[352712716,1739269834384,-150.094,0.00010572,2]
[352712717,1739269834394,-231.269,0.00010572,2]
[352712718,1739269834404,-185.039,0.00010572,2]
[352712719,1739269834414,-153.0,0.000106,2]
[352712720,1739269834424,-215.860309,0.000106,2]
[352712721,1739269834434,-153.0,0.000106,2]
[352712722,1739269834444,-215.6503119,0.000106,2]
[352712723,1739269834454,-306.0,0.000106,2]
[352712724,1739269834463,-153.0,0.000106,2]
[352712725,1739269834473,-153.0,0.000106,2]
[352712726,1739269834483,-465.96014779,0.00010605,2]
[352712727,1739269834493,-165.96414609,0.00010629,2]
[352712728,1739269834503,-600.0,0.00010629,2]
[352712729,1739269834513,-400.0,0.00010685,2]
[352712730,1739269834522,-153.0,0.000107,2]
[352712731,1739269834533,-153.4618619,0.000107,2]
[352712732,1739269834543,-155.9866716,0.000107,2]
[352712733,1739269834553,-153.0,0.000107,2]
[352712734,1739269834562,-153.0,0.000107,2]
[352712735,1739269834572,-600.0,0.00010739,2]
[352712736,1739269834582,-165.96414609,0.00010744,2]
[352712737,1739269834591,-156.18,0.00010768,2]
[352712738,1739269834601,-6105.9802204,0.00010779,2]
[352712739,1739269834610,-151.88243904,0.0001078,2]
[352712740,1739269834622,-153.0,0.000108,2]
[352712741,1739269834632,-359.4439506,0.000108,2]
[352712742,1739269834641,-309.1472928,0.000108,2]
[352712743,1739269834651,-2116.66448361,0.0001083,2]
[352712744,1739269834660,-775.16738545,0.00010848,2]
[352712745,1739269834670,-165.96414609,0.00010858,2]
[352712746,1739269834679,-629.83214933,0.00010858,2]
[352712747,1739269834689,-9574.40884722,0.00010859,2]
[352712748,1739269834698,-500.0,0.00010899,2]
[352712749,1739269834710,-309.97909221,0.00010899,2]
[352712750,1739269834720,-223.95174524,0.00010899,2]
[352712751,1739269834730,-156.76622166,0.00010899,2]
[352712752,1739269834739,-15350.17728524,0.000109,2]
[352712753,1739269834749,-75567.58457584,0.000109,2]
[352712754,1739269834766,-109612.07306012,0.000109,2]
[352712755,1739269834820,-406.271099,0.000109,2]
[352712756,1739269834891,-456.65,0.000109,2]
[352712781,1739269837920,-2387.29963517,0.000109,2]
[352712783,1739269837932,-3499.791812,0.000109,2]
[352712864,1739269840243,-330.40146357,0.000109,2]
[352712866,1739269840255,-500.0,0.000109,2]
[352713172,1739269843239,-342.461,0.000109,2]
[352713482,1739269846110,-16569.50051507,0.000109,2]
[352713484,1739269846119,-823.0,0.000109,3]
[352713486,1739269846130,-673.54550196,0.000109,2]
[352713488,1739269846140,-13268.2024785,0.00010912,2]
[352713490,1739269846150,-26798.05877331,0.00010921,2]
[352713492,1739269846159,-5961.03173044,0.00010946,2]
[352713494,1739269846168,-151.0,0.00010958,2]
[352713496,1739269846177,-151.0,0.00010958,2]
[352713498,1739269846188,-151.0,0.00010958,2]
[352713500,1739269846197,-500.0,0.00010958,2]
[352713502,1739269846206,-500.0,0.00010958,2]
[352713504,1739269846215,-500.0,0.00010958,2]
[352713506,1739269846226,-500.0,0.00010958,2]
[352713508,1739269846234,-500.0,0.00010958,2]
[352713509,1739269846243,-500.0,0.00010958,2]
[352713511,1739269846253,-500.0,0.00010958,2]
[352713514,1739269846263,-500.0,0.00010958,2]
[352713515,1739269846274,-500.0,0.00010958,2]
[352713517,1739269846283,-500.0,0.00010958,2]
[352713519,1739269846293,-500.0,0.00010958,2]
[352713521,1739269846302,-500.0,0.00010958,2]
[352713523,1739269846312,-500.00591781,0.00010958,2]
[352713525,1739269846321,-500.0,0.00010958,2]
[352713527,1739269846330,-500.0,0.00010958,2]
[352713529,1739269846339,-500.0,0.00010958,2]
[352713531,1739269846349,-500.0,0.00010958,2]
[352713533,1739269846358,-500.0,0.00010958,2]
[352713535,1739269846367,-500.0,0.00010958,2]
[352713537,1739269846377,-500.0,0.00010958,2]
[352713539,1739269846387,-626.0,0.00010958,2]
[352713541,1739269846396,-500.0,0.00010958,2]
[352713543,1739269846406,-500.0,0.00010958,2]
[352713545,1739269846415,-500.0,0.00010958,2]
[352713547,1739269846425,-500.0,0.00010958,2]
[352713549,1739269846434,-500.0,0.00010958,2]
[352713551,1739269846445,-500.0,0.00010958,2]
[352713553,1739269846455,-500.0,0.00010958,2]
[352713555,1739269846464,-500.0,0.00010958,2]
[352713557,1739269846474,-500.0,0.00010958,2]
[352713559,1739269846484,-500.0,0.00010958,2]
[352713561,1739269846493,-216.57850291,0.00010958,2]
[352713563,1739269846503,-500.0,0.00010958,2]
[352713565,1739269846512,-500.0,0.00010958,2]
[352713567,1739269846521,-500.0,0.00010958,2]
[352713569,1739269846531,-500.0,0.00010958,2]
[352713571,1739269846541,-500.0,0.00010958,2]
[352713573,1739269846550,-500.0,0.00010958,2]
[352713575,1739269846561,-500.0,0.00010958,2]
[352713577,1739269846570,-500.0,0.00010958,2]
[352713579,1739269846580,-500.0,0.00010958,2]
[352713581,1739269846590,-500.0,0.00010958,2]
[352713583,1739269846600,-500.0,0.00010958,2]
[352713585,1739269846611,-500.0,0.00010958,2]
[352713587,1739269846620,-500.0,0.00010958,2]
[352713589,1739269846630,-500.0,0.00010958,2]
[352713591,1739269846640,-500.0,0.00010958,2]
[352713593,1739269846649,-500.0,0.00010958,2]
[352713595,1739269846659,-228.801224,0.00010958,2]
[352713597,1739269846668,-228.801224,0.00010958,2]
[352713599,1739269846679,-228.801224,0.00010958,2]
[352713601,1739269846688,-228.801224,0.00010958,2]
[352713603,1739269846698,-228.801224,0.00010958,2]
[352713605,1739269846708,-500.0,0.00010958,2]
[352713607,1739269846718,-500.0,0.00010958,2]
[352713609,1739269846727,-500.0,0.00010958,2]
[352713611,1739269846737,-500.0,0.00010958,2]
[352713613,1739269846747,-500.0,0.00010958,2]
[352713615,1739269846758,-500.0,0.00010958,2]
[352713617,1739269846769,-193.310626,0.00010958,2]
[352713619,1739269846780,-500.0,0.00010958,2]
[352713621,1739269846791,-500.0,0.00010958,2]
[352713623,1739269846801,-500.0,0.00010958,2]
[352713625,1739269846810,-500.0,0.00010958,2]
[352713627,1739269846820,-175.95988729,0.00010958,2]
[352713629,1739269846830,-500.0,0.00010958,2]
[352713631,1739269846840,-500.0,0.00010958,2]
[352713633,1739269846850,-500.0,0.00010958,2]
[352713635,1739269846860,-553.23,0.00010958,2]
[352713637,1739269846870,-500.0,0.00010958,2]
[352713639,1739269846882,-500.0,0.00010958,2]
[352713641,1739269846892,-1089.51,0.00010958,2]
[352713643,1739269846901,-500.0,0.00010958,2]
[352713645,1739269846911,-480.83622843,0.00010958,2]
[352713647,1739269846926,-39.19377157,0.00010958,2]
[352713649,1739269846936,-500.0,0.00010958,2]
[352713651,1739269846946,-500.0,0.00010958,2]
[352713653,1739269846955,-500.0,0.00010958,2]
[352713655,1739269846966,-500.0,0.00010958,2]
[352713657,1739269846975,-500.0,0.00010958,2]
[352713659,1739269846986,-500.0,0.00010958,2]
[352713661,1739269846995,-500.0,0.00010958,2]
[352713663,1739269847005,-500.0,0.00010958,2]
[352713665,1739269847019,-500.0,0.00010958,2]
[352713667,1739269847030,-500.0,0.00010958,2]
[352713669,1739269847041,-500.0,0.00010958,2]
[352713671,1739269847051,-500.0,0.00010958,2]
[352713673,1739269847061,-500.0,0.00010958,2]
[352713675,1739269847072,-500.0,0.00010958,2]
[352713677,1739269847083,-500.0,0.00010958,2]
[352713679,1739269847094,-500.0,0.00010958,2]
[352713681,1739269847104,-500.0,0.00010958,2]
[352713683,1739269847114,-500.0,0.00010958,2]
[352713685,1739269847124,-500.0,0.00010958,2]
[352713687,1739269847134,-498.15700664,0.00010958,2]
[352713689,1739269847143,-512.85,0.00010958,2]
[352713691,1739269847153,-500.0,0.00010958,2]
[352713693,1739269847163,-598.69119046,0.00010958,2]
[352713695,1739269847172,-849.53,0.00010958,2]
[352713697,1739269847181,-500.0,0.00010958,2]
[352713699,1739269847193,-500.0,0.00010958,2]
[352713701,1739269847202,-500.0,0.00010958,2]
[352713703,1739269847211,-500.0,0.00010958,2]
[352713705,1739269847221,-500.0,0.00010958,2]
[352713707,1739269847231,-500.0,0.00010958,2]
[352713709,1739269847240,-500.0,0.00010958,2]
[352713711,1739269847250,-500.0,0.00010958,2]
[352713713,1739269847259,-500.0,0.00010958,2]
[352713715,1739269847271,-500.0,0.00010958,2]
[352713731,1739269847421,-956.66,0.00010958,2]
[352713734,1739269847431,-511.33120436,0.00010958,2]
[352713736,1739269847441,-500.0,0.00010958,2]
[352713737,1739269847450,-501.75218109,0.00010958,2]
[352713740,1739269847460,-500.0,0.00010958,2]
[352713742,1739269847470,-6.24214139,0.00010958,2]
[352714858,1739271032402,-8150.9769903,9.781e-05,2]
[352714860,1739271032412,-300.0,9.999e-05,2]
[352714862,1739271032421,-4337.49162633,0.0001,2]
[352714864,1739271032431,-2300.0,0.00010102,2]
[352714866,1739271032440,-263.376,0.00010526,2]
[352714868,1739271032450,-1973.0,0.00010526,2]
[352714870,1739271032459,-538.0,0.00010526,2]
[352714872,1739271032468,-2295.0,0.00010526,2]
[352714873,1739271032477,-396.0,0.00010526,2]
[352714875,1739271032487,-150.0,0.00010526,2]
[352714877,1739271032497,-400.0,0.00010685,2]
[352714879,1739271032506,-168.52810508,0.00010858,2]
[352714880,1739271032515,-3000.0,0.00010858,2]
[352714881,1739271032524,-168.52810507,0.00010859,2]
[352714882,1739271032534,-40491.32244239,0.000109,2]
[352714883,1739271032543,-153.0,0.000109,2]
[352714884,1739271032551,-153.0,0.000109,2]
[352714886,1739271032560,-307.8253333,0.000109,2]
[352714888,1739271032569,-153.0,0.000109,2]
[352714889,1739271032578,-500.0,0.00010955,2]
[352714891,1739271032588,-161.58675782,0.00010955,2]
[352714893,1739271032598,-180.787,0.00010955,2]
[352714895,1739271032612,-500.0,0.00010955,2]
[352714897,1739271032621,-515.63425486,0.00010955,2]
[352714899,1739271032630,-151.0,0.00010957,2]
[352714901,1739271032638,-531.275,0.00010957,2]
[352714903,1739271032647,-500.0,0.00010957,2]
[352714905,1739271032656,-365.27710542,0.00010957,2]
[352714907,1739271032665,-500.0,0.00010958,2]
[352714909,1739271032677,-500.0,0.00010958,2]
[352714911,1739271032687,-530.18,0.00010958,2]
[352714913,1739271032697,-500.0,0.00010958,2]
[352714915,1739271032706,-500.0,0.00010958,2]
[352714917,1739271032716,-500.0,0.00010958,2]
[352714919,1739271032725,-500.0,0.00010958,2]
[352714921,1739271032734,-500.0,0.00010958,2]
[352714923,1739271032743,-500.0,0.00010958,2]
[352714924,1739271032752,-500.0,0.00010958,2]
[352714925,1739271032762,-500.0,0.00010958,2]
[352714927,1739271032771,-500.0,0.00010958,2]
[352714929,1739271032780,-262.69878102,0.00010958,2]
[352714931,1739271032790,-500.0,0.00010958,2]
[352714932,1739271032801,-500.0,0.00010958,2]
[352714933,1739271032811,-500.0,0.00010958,2]
[352714934,1739271032820,-500.0,0.00010958,2]
[352714935,1739271032830,-500.0,0.00010958,2]
[352714936,1739271032839,-500.0,0.00010958,2]
[352714937,1739271032850,-500.0,0.00010958,2]
[352714938,1739271032861,-500.0,0.00010958,2]
[352714939,1739271032870,-310.38203433,0.00010958,2]
[352714941,1739271032879,-500.0,0.00010958,2]
[352714942,1739271032888,-503.47072538,0.00010958,2]
[352714944,1739271032898,-500.0,0.00010958,2]
[352714946,1739271032908,-500.3449922,0.00010958,2]
[352714948,1739271032917,-582.94677833,0.00010958,2]
[352714950,1739271032928,-501.64895597,0.00010958,2]
[352714952,1739271032937,-646.84251668,0.00010958,2]
[352714954,1739271032947,-500.0,0.00010958,2]
[352714957,1739271032956,-500.0,0.00010958,2]
[352714959,1739271032966,-500.0,0.00010958,2]
[352714960,1739271032975,-500.0,0.00010958,2]
[352714963,1739271032985,-500.0,0.00010958,2]
[352714964,1739271032995,-500.0,0.00010958,2]
[352714966,1739271033004,-500.0,0.00010958,2]
[352714969,1739271033014,-501.58500403,0.00010958,2]
[352714971,1739271033023,-500.0,0.00010958,2]
[352714972,1739271033033,-500.0,0.00010958,2]
[352714974,1739271033043,-502.45,0.00010958,2]
[352714976,1739271033053,-501.09975694,0.00010958,2]
[352714978,1739271033063,-500.0,0.00010958,2]
[352714981,1739271033074,-500.0,0.00010958,2]
[352714982,1739271033084,-502.24390212,0.00010958,2]
[352714984,1739271033093,-500.0,0.00010958,2]
[352714986,1739271033102,-500.0,0.00010958,2]
[352714988,1739271033112,-500.0,0.00010958,2]
[352714990,1739271033121,-500.0,0.00010958,2]
[352714992,1739271033130,-501.20586288,0.00010958,2]
[352714994,1739271033140,-500.0,0.00010958,2]
[352714997,1739271033150,-501.19091435,0.00010958,2]
[352714999,1739271033160,-500.0,0.00010958,2]
[352715000,1739271033169,-500.0,0.00010958,2]
[352715003,1739271033179,-500.0,0.00010958,2]
[352715005,1739271033190,-501.74379807,0.00010958,2]
[352715006,1739271033200,-501.80675573,0.00010958,2]
[352715008,1739271033210,-500.0,0.00010958,2]
[352715010,1739271033220,-500.0,0.00010958,2]
[352715012,1739271033230,-500.0,0.00010958,2]
[352715014,1739271033240,-500.0,0.00010958,2]
[352715016,1739271033250,-500.0,0.00010958,2]